[Event "Titled Tuesday Blitz February 28 Late 2023"]
[White "Prydun, Andriy"]
[Black "Smith, Garrett L"]
[WhiteFideId "14145898"]
[BlackFideId "2024829"]
[WhiteElo "2164"]
[BlackElo "2284"]
[Result "1-0"]
[Round "04"]
[TimeControl "180+2"]
[Date "2023.02.28"]
[WhiteClock "0:00:13"]
[BlackClock "0:00:27"]

1. e4 {[%clk 0:02:59]}  c5 {[%clk 0:03:00]} 2. Nf3 {[%clk 0:02:58]}  Nc6 {[%clk 0:03:00]} 3. Bb5 {[%clk 0:02:58]}  e6 {[%clk 0:03:00]} 4. O-O {[%clk 0:02:57]}  Nge7 {[%clk 0:03:00]} 5. c3 {[%clk 0:02:56]}  a6 {[%clk 0:03:00]} 6. Ba4 {[%clk 0:02:56]}  b5 {[%clk 0:03:00]} 7. Bc2 {[%clk 0:02:57]}  d5 {[%clk 0:03:00]} 8. exd5 {[%clk 0:02:56]}  Nxd5 {[%clk 0:02:59]} 9. d4 {[%clk 0:02:55]}  Nf6 {[%clk 0:02:54]} 10. Bg5 {[%clk 0:02:54]}  cxd4 {[%clk 0:02:48]} 11. a4 {[%clk 0:02:54]}  dxc3 {[%clk 0:02:30]} 12. Nxc3 {[%clk 0:02:40]}  Qxd1 {[%clk 0:02:21]} 13. Rfxd1 {[%clk 0:02:40]}  b4 {[%clk 0:02:22]} 14. Ne4 {[%clk 0:01:35]}  Nxe4 {[%clk 0:01:34]} 15. Bxe4 {[%clk 0:01:35]}  Bb7 {[%clk 0:01:35]} 16. Rac1 {[%clk 0:01:33]}  Na5 {[%clk 0:01:35]} 17. Bxb7 {[%clk 0:01:20]}  Nxb7 {[%clk 0:01:36]} 18. Rc7 {[%clk 0:01:16]}  Nd6 {[%clk 0:01:13]} 19. Bf4 {[%clk 0:01:03]}  Rd8 {[%clk 0:01:13]} 20. Ne5 {[%clk 0:00:54]}  Rc8 {[%clk 0:01:03]} 21. Rdc1 {[%clk 0:00:42]}  Rxc7 {[%clk 0:01:00]} 22. Rxc7 {[%clk 0:00:43]}  f6 {[%clk 0:00:58]} 23. Nc6 {[%clk 0:00:22]}  e5 {[%clk 0:00:58]} 24. Bd2 {[%clk 0:00:22]}  Ne4 {[%clk 0:00:50]} 25. Bxb4 {[%clk 0:00:21]}  Bxb4 {[%clk 0:00:47]} 26. Nxb4 {[%clk 0:00:19]}  O-O {[%clk 0:00:46]} 27. f3 {[%clk 0:00:17]}  Nd2 {[%clk 0:00:37]} 28. Nxa6 {[%clk 0:00:16]}  Ra8 {[%clk 0:00:38]} 29. Nc5 {[%clk 0:00:16]}  Nc4 {[%clk 0:00:34]} 30. b4 {[%clk 0:00:16]}  f5 {[%clk 0:00:30]} 31. a5 {[%clk 0:00:15]}  f4 {[%clk 0:00:29]} 32. a6 {[%clk 0:00:14]}  Ne3 {[%clk 0:00:27]} 33. a7 {[%clk 0:00:14]}  Rd8 {[%clk 0:00:28]} 34. Rd7 {[%clk 0:00:13]}  Ra8 {[%clk 0:00:27]} 35. b5 {[%clk 0:00:13]} 1-0


[Site "https://www.chess.com"]

[Event "Titled Tuesday Blitz February 28 Late 2023"]
[White "Kaufman, Raymond"]
[Black "Kleiman, Jake"]
[WhiteFideId "2015056"]
[BlackFideId "2020041"]
[WhiteElo "2321"]
[BlackElo "2484"]
[Result "0-1"]
[Round "04"]
[TimeControl "180+2"]
[Date "2023.02.28"]
[WhiteClock "0:00:05"]
[BlackClock "0:01:07"]

1. d4 {[%clk 0:03:00]}  Nf6 {[%clk 0:02:54]} 2. c4 {[%clk 0:02:59]}  c5 {[%clk 0:02:53]} 3. d5 {[%clk 0:02:59]}  b5 {[%clk 0:02:53]} 4. cxb5 {[%clk 0:02:49]}  a6 {[%clk 0:02:53]} 5. e3 {[%clk 0:02:39]}  g6 {[%clk 0:02:52]} 6. Nc3 {[%clk 0:02:37]}  Bg7 {[%clk 0:02:52]} 7. a4 {[%clk 0:02:32]}  O-O {[%clk 0:02:52]} 8. Nf3 {[%clk 0:02:22]}  d6 {[%clk 0:02:51]} 9. e4 {[%clk 0:02:22]}  Nbd7 {[%clk 0:02:16]} 10. Be2 {[%clk 0:02:11]}  axb5 {[%clk 0:02:16]} 11. Bxb5 {[%clk 0:02:08]}  Ba6 {[%clk 0:02:16]} 12. Qc2 {[%clk 0:01:51]}  Bxb5 {[%clk 0:02:08]} 13. Nxb5 {[%clk 0:01:50]}  Qa5+ {[%clk 0:02:07]} 14. Bd2 {[%clk 0:01:39]}  Qxb5 {[%clk 0:02:07]} 15. axb5 {[%clk 0:01:38]}  Rxa1+ {[%clk 0:02:08]} 16. Bc1 {[%clk 0:01:33]}  Nxe4 {[%clk 0:02:08]} 17. O-O {[%clk 0:01:29]}  Nef6 {[%clk 0:02:06]} 18. h3 {[%clk 0:01:17]}  Nxd5 {[%clk 0:02:02]} 19. Qb3 {[%clk 0:01:05]}  N7b6 {[%clk 0:01:59]} 20. Bg5 {[%clk 0:00:58]}  Rxf1+ {[%clk 0:01:56]} 21. Kxf1 {[%clk 0:00:58]}  h6 {[%clk 0:01:49]} 22. Bd2 {[%clk 0:00:53]}  Ra8 {[%clk 0:01:50]} 23. g4 {[%clk 0:00:52]}  Ra1+ {[%clk 0:01:41]} 24. Kg2 {[%clk 0:00:51]}  c4 {[%clk 0:01:29]} 25. Qc2 {[%clk 0:00:48]}  Ra2 {[%clk 0:01:29]} 26. Bc1 {[%clk 0:00:33]}  c3 {[%clk 0:01:27]} 27. Qd1 {[%clk 0:00:11]}  cxb2 {[%clk 0:01:23]} 28. Bxb2 {[%clk 0:00:11]}  Rxb2 {[%clk 0:01:23]} 29. Qc1 {[%clk 0:00:09]}  Rxb5 {[%clk 0:01:19]} 30. Qc6 {[%clk 0:00:08]}  Rc5 {[%clk 0:01:18]} 31. Qe8+ {[%clk 0:00:08]}  Bf8 {[%clk 0:01:18]} 32. Nd4 {[%clk 0:00:08]}  Nf4+ {[%clk 0:01:12]} 33. Kf3 {[%clk 0:00:08]}  Nxh3 {[%clk 0:01:09]} 34. Ne6 {[%clk 0:00:06]}  Ng5+ {[%clk 0:01:06]} 35. Nxg5 {[%clk 0:00:05]}  Rxg5 {[%clk 0:01:07]} 0-1


[Site "https://www.chess.com"]

[Event "Titled Tuesday Blitz February 28 Late 2023"]
[White "Da Silva Junior, Sediney Mari"]
[Black "Molenda, Marcin"]
[WhiteFideId "2132079"]
[BlackFideId "1173065"]
[WhiteElo "1977"]
[BlackElo "2286"]
[Result "0-1"]
[Round "04"]
[TimeControl "180+2"]
[Date "2023.02.28"]
[WhiteClock "0:01:28"]
[BlackClock "0:01:40"]

1. e4 {[%clk 0:02:55]}  e5 {[%clk 0:02:58]} 2. Nc3 {[%clk 0:02:55]}  Nf6 {[%clk 0:02:57]} 3. f4 {[%clk 0:02:55]}  d5 {[%clk 0:02:54]} 4. fxe5 {[%clk 0:02:54]}  Nxe4 {[%clk 0:02:52]} 5. d3 {[%clk 0:02:52]}  Nxc3 {[%clk 0:02:51]} 6. bxc3 {[%clk 0:02:52]}  Be7 {[%clk 0:02:34]} 7. Nf3 {[%clk 0:02:51]}  O-O {[%clk 0:02:34]} 8. Be2 {[%clk 0:02:47]}  c5 {[%clk 0:02:33]} 9. O-O {[%clk 0:02:47]}  Nc6 {[%clk 0:02:32]} 10. d4 {[%clk 0:02:47]}  c4 {[%clk 0:02:33]} 11. Bf4 {[%clk 0:02:46]}  Bf5 {[%clk 0:02:32]} 12. Qd2 {[%clk 0:02:45]}  Qd7 {[%clk 0:02:31]} 13. Bg5 {[%clk 0:02:44]}  Nd8 {[%clk 0:02:30]} 14. Nh4 {[%clk 0:02:39]}  Be4 {[%clk 0:02:29]} 15. Bf3 {[%clk 0:02:34]}  Bg6 {[%clk 0:02:22]} 16. Nxg6 {[%clk 0:02:34]}  hxg6 {[%clk 0:02:22]} 17. Rf2 {[%clk 0:02:24]}  Bxg5 {[%clk 0:02:16]} 18. Qxg5 {[%clk 0:02:23]}  Ne6 {[%clk 0:02:17]} 19. Qg3 {[%clk 0:02:20]}  Qe7 {[%clk 0:02:17]} 20. Raf1 {[%clk 0:02:20]}  Rad8 {[%clk 0:02:14]} 21. Bg4 {[%clk 0:02:11]}  Ng5 {[%clk 0:02:11]} 22. Rf4 {[%clk 0:01:44]}  Ne4 {[%clk 0:01:55]} 23. Qh3 {[%clk 0:01:40]}  Qg5 {[%clk 0:01:42]} 24. e6 {[%clk 0:01:32]}  f5 {[%clk 0:01:42]} 25. Bf3 {[%clk 0:01:30]}  Qxf4 {[%clk 0:01:40]} 26. e7 {[%clk 0:01:31]}  Qe3+ {[%clk 0:01:39]} 27. Kh1 {[%clk 0:01:31]}  Nf2+ {[%clk 0:01:40]} 28. Rxf2 {[%clk 0:01:28]}  Qe1+ {[%clk 0:01:40]} 0-1


[Site "https://www.chess.com"]

[Event "Titled Tuesday Blitz February 28 Late 2023"]
[White "De Souza, Cristiano Gomes"]
[Black "Yeritsyan, Hayk"]
[WhiteFideId "2151758"]
[BlackFideId "13307320"]
[WhiteElo "2068"]
[BlackElo "2472"]
[Result "0-1"]
[Round "04"]
[TimeControl "180+2"]
[Date "2023.02.28"]
[WhiteClock "0:00:03"]
[BlackClock "0:00:02"]

1. d4 {[%clk 0:03:00]}  d5 {[%clk 0:02:56]} 2. c4 {[%clk 0:02:59]}  c6 {[%clk 0:02:55]} 3. Nf3 {[%clk 0:02:58]}  Nf6 {[%clk 0:02:55]} 4. Nc3 {[%clk 0:02:57]}  e6 {[%clk 0:02:55]} 5. Bg5 {[%clk 0:02:55]}  Nbd7 {[%clk 0:02:55]} 6. e3 {[%clk 0:02:55]}  Qa5 {[%clk 0:02:56]} 7. Nd2 {[%clk 0:02:54]}  Bb4 {[%clk 0:02:55]} 8. Qc2 {[%clk 0:02:53]}  dxc4 {[%clk 0:02:54]} 9. Bxf6 {[%clk 0:02:52]}  Nxf6 {[%clk 0:02:55]} 10. Nxc4 {[%clk 0:02:52]}  Bxc3+ {[%clk 0:02:56]} 11. bxc3 {[%clk 0:02:51]}  Qc7 {[%clk 0:02:56]} 12. Be2 {[%clk 0:02:49]}  c5 {[%clk 0:02:57]} 13. Rc1 {[%clk 0:02:41]}  O-O {[%clk 0:02:56]} 14. O-O {[%clk 0:02:40]}  Bd7 {[%clk 0:02:55]} 15. Ne5 {[%clk 0:02:39]}  Rac8 {[%clk 0:02:52]} 16. Qb2 {[%clk 0:02:37]}  Rfd8 {[%clk 0:02:48]} 17. Bf3 {[%clk 0:02:35]}  b6 {[%clk 0:02:46]} 18. h3 {[%clk 0:02:33]}  Be8 {[%clk 0:02:46]} 19. Rfd1 {[%clk 0:02:31]}  Nd7 {[%clk 0:02:45]} 20. Nc6 {[%clk 0:02:25]}  Nf6 {[%clk 0:02:44]} 21. Nxd8 {[%clk 0:02:24]}  Rxd8 {[%clk 0:02:44]} 22. c4 {[%clk 0:02:23]}  h6 {[%clk 0:02:37]} 23. dxc5 {[%clk 0:02:19]}  Rxd1+ {[%clk 0:02:36]} 24. Rxd1 {[%clk 0:02:18]}  Qxc5 {[%clk 0:02:37]} 25. Qd4 {[%clk 0:02:16]}  Qc7 {[%clk 0:02:24]} 26. Rc1 {[%clk 0:01:58]}  Nd7 {[%clk 0:02:15]} 27. Be2 {[%clk 0:01:47]}  Nc5 {[%clk 0:02:11]} 28. Rd1 {[%clk 0:01:44]}  Kf8 {[%clk 0:02:03]} 29. Qd8 {[%clk 0:01:41]}  Qe7 {[%clk 0:01:55]} 30. Qa8 {[%clk 0:01:36]}  g6 {[%clk 0:01:13]} 31. Rd8 {[%clk 0:01:33]}  h5 {[%clk 0:01:11]} 32. Bf3 {[%clk 0:01:32]}  Nd7 {[%clk 0:00:50]} 33. Bc6 {[%clk 0:01:28]}  Nf6 {[%clk 0:00:48]} 34. g4 {[%clk 0:01:23]}  hxg4 {[%clk 0:00:48]} 35. hxg4 {[%clk 0:01:23]}  g5 {[%clk 0:00:38]} 36. f4 {[%clk 0:01:20]}  Qc5 {[%clk 0:00:09]} 37. Bxe8 {[%clk 0:01:05]}  Qxe3+ {[%clk 0:00:08]} 38. Kg2 {[%clk 0:00:43]}  Qe2+ {[%clk 0:00:06]} 39. Kg1 {[%clk 0:00:24]}  Qxg4+ {[%clk 0:00:05]} 40. Qg2 {[%clk 0:00:18]}  Qxg2+ {[%clk 0:00:04]} 41. Kxg2 {[%clk 0:00:18]}  Nxe8 {[%clk 0:00:01]} 42. fxg5 {[%clk 0:00:17]}  Ke7 {[%clk 0:00:01]} 43. Ra8 {[%clk 0:00:16]}  a5 {[%clk 0:00:02]} 44. Rb8 {[%clk 0:00:14]}  Nd6 {[%clk 0:00:01]} 45. Rxb6 {[%clk 0:00:13]}  Nxc4 {[%clk 0:00:02]} 46. Rb5 {[%clk 0:00:11]}  Kd6 {[%clk 0:00:02]} 47. Kf3 {[%clk 0:00:05]}  Kc6 {[%clk 0:00:02]} 48. Rb8 {[%clk 0:00:03]}  Nd6 {[%clk 0:00:02]} 0-1


[Site "https://www.chess.com"]

[Event "Titled Tuesday Blitz February 28 Late 2023"]
[White "Chabris, Christopher"]
[Black "Petrovic, Aleksa"]
[WhiteFideId "2005263"]
[BlackFideId "967629"]
[WhiteElo "2228"]
[BlackElo "2304"]
[Result "0-1"]
[Round "04"]
[TimeControl "180+2"]
[Date "2023.02.28"]
[WhiteClock "0:00:01"]
[BlackClock "0:00:43"]

1. e4 {[%clk 0:03:00]}  e6 {[%clk 0:03:00]} 2. d4 {[%clk 0:03:00]}  d5 {[%clk 0:03:00]} 3. Nc3 {[%clk 0:03:00]}  Bb4 {[%clk 0:03:00]} 4. e5 {[%clk 0:03:00]}  c5 {[%clk 0:03:00]} 5. a3 {[%clk 0:03:00]}  Bxc3+ {[%clk 0:03:00]} 6. bxc3 {[%clk 0:03:01]}  Qa5 {[%clk 0:03:01]} 7. Bd2 {[%clk 0:02:58]}  Qa4 {[%clk 0:03:01]} 8. h4 {[%clk 0:02:58]}  Ne7 {[%clk 0:03:00]} 9. h5 {[%clk 0:02:58]}  h6 {[%clk 0:03:00]} 10. Qg4 {[%clk 0:02:48]}  Kf8 {[%clk 0:02:57]} 11. Qd1 {[%clk 0:02:47]}  Nbc6 {[%clk 0:02:54]} 12. Nf3 {[%clk 0:02:41]}  b6 {[%clk 0:02:53]} 13. Rh4 {[%clk 0:02:37]}  Nf5 {[%clk 0:02:48]} 14. Rf4 {[%clk 0:02:36]}  c4 {[%clk 0:02:45]} 15. g4 {[%clk 0:02:32]}  Nfe7 {[%clk 0:02:44]} 16. Bh3 {[%clk 0:02:26]}  g5 {[%clk 0:02:26]} 17. hxg6 {[%clk 0:02:19]}  Nxg6 {[%clk 0:02:26]} 18. Rf6 {[%clk 0:02:15]}  Nce7 {[%clk 0:02:27]} 19. Qc1 {[%clk 0:02:00]}  Ng8 {[%clk 0:02:23]} 20. Rb1 {[%clk 0:01:44]}  Kg7 {[%clk 0:02:11]} 21. Rb4 {[%clk 0:01:38]}  Qe8 {[%clk 0:02:03]} 22. a4 {[%clk 0:01:38]}  Bd7 {[%clk 0:01:54]} 23. Kf1 {[%clk 0:00:54]}  Bxa4 {[%clk 0:01:46]} 24. Kg2 {[%clk 0:00:52]}  Bd7 {[%clk 0:01:45]} 25. g5 {[%clk 0:00:50]}  Nxf6 {[%clk 0:01:39]} 26. gxf6+ {[%clk 0:00:49]}  Kg8 {[%clk 0:01:32]} 27. Bxh6 {[%clk 0:00:48]}  a5 {[%clk 0:01:29]} 28. Rxb6 {[%clk 0:00:37]}  a4 {[%clk 0:01:30]} 29. Bg7 {[%clk 0:00:33]}  Rh7 {[%clk 0:01:26]} 30. Qa3 {[%clk 0:00:30]}  Rxg7 {[%clk 0:01:24]} 31. fxg7 {[%clk 0:00:30]}  Qe7 {[%clk 0:01:24]} 32. Rd6 {[%clk 0:00:28]}  Kxg7 {[%clk 0:01:21]} 33. Kg3 {[%clk 0:00:24]}  Rh8 {[%clk 0:01:20]} 34. Bg4 {[%clk 0:00:23]}  Nh4 {[%clk 0:01:19]} 35. Qc1 {[%clk 0:00:16]}  Nxf3 {[%clk 0:01:18]} 36. Kxf3 {[%clk 0:00:16]}  Kf8 {[%clk 0:01:04]} 37. Ra6 {[%clk 0:00:16]}  f5 {[%clk 0:01:01]} 38. Ra8+ {[%clk 0:00:13]}  Be8 {[%clk 0:00:59]} 39. Qf4 {[%clk 0:00:10]}  Qf7 {[%clk 0:00:51]} 40. Ke2 {[%clk 0:00:06]}  fxg4 {[%clk 0:00:48]} 41. Qxg4 {[%clk 0:00:05]}  Qf5 {[%clk 0:00:43]} 42. Qg3 {[%clk 0:00:03]}  Qxc2+ {[%clk 0:00:43]} 43. Kf1 {[%clk 0:00:01]}  Qd1+ {[%clk 0:00:43]} 44. Kg2 {[%clk 0:00:01]}  Qh1# {[%clk 0:00:43]} 0-1


[Site "https://www.chess.com"]

[Event "Titled Tuesday Blitz February 28 Late 2023"]
[White "Floresvillar Gonzalez, Luis Migu"]
[Black "Vovk, Orest"]
[WhiteFideId "5100542"]
[BlackFideId "14113490"]
[WhiteElo "2040"]
[BlackElo "2215"]
[Result "0-1"]
[Round "04"]
[TimeControl "180+2"]
[Date "2023.02.28"]
[WhiteClock "0:00:26"]
[BlackClock "0:00:15"]

1. d4 {[%clk 0:03:00]}  e5 {[%clk 0:02:54]} 2. dxe5 {[%clk 0:03:00]}  Nc6 {[%clk 0:02:53]} 3. Nf3 {[%clk 0:02:59]}  Qe7 {[%clk 0:02:54]} 4. c3 {[%clk 0:02:51]}  Nxe5 {[%clk 0:02:53]} 5. Nxe5 {[%clk 0:02:51]}  Qxe5 {[%clk 0:02:53]} 6. Nd2 {[%clk 0:02:51]}  Nf6 {[%clk 0:02:52]} 7. Nf3 {[%clk 0:02:51]}  Qh5 {[%clk 0:02:52]} 8. Bf4 {[%clk 0:02:47]}  c6 {[%clk 0:02:51]} 9. e3 {[%clk 0:02:47]}  d5 {[%clk 0:02:51]} 10. Be2 {[%clk 0:02:46]}  Bg4 {[%clk 0:02:50]} 11. h3 {[%clk 0:02:44]}  Bc5 {[%clk 0:02:49]} 12. Nd4 {[%clk 0:02:39]}  Bxe2 {[%clk 0:02:48]} 13. Qxe2 {[%clk 0:02:39]}  Bxd4 {[%clk 0:02:45]} 14. exd4+ {[%clk 0:02:33]}  Qxe2+ {[%clk 0:02:44]} 15. Kxe2 {[%clk 0:02:33]}  Kd7 {[%clk 0:02:44]} 16. f3 {[%clk 0:02:27]}  Rhe8+ {[%clk 0:02:43]} 17. Kd2 {[%clk 0:02:26]}  Nh5 {[%clk 0:02:43]} 18. Bh2 {[%clk 0:02:23]}  f5 {[%clk 0:02:40]} 19. Be5 {[%clk 0:02:20]}  f4 {[%clk 0:02:36]} 20. Rhe1 {[%clk 0:02:19]}  Re6 {[%clk 0:02:36]} 21. Re2 {[%clk 0:02:14]}  Rae8 {[%clk 0:02:36]} 22. Rae1 {[%clk 0:02:13]}  Ng3 {[%clk 0:02:30]} 23. Rf2 {[%clk 0:02:07]}  g5 {[%clk 0:02:22]} 24. a4 {[%clk 0:02:05]}  h5 {[%clk 0:02:14]} 25. Rd1 {[%clk 0:01:50]}  c5 {[%clk 0:02:09]} 26. Kd3 {[%clk 0:01:42]}  c4+ {[%clk 0:01:59]} 27. Kc2 {[%clk 0:01:42]}  Rb6 {[%clk 0:01:52]} 28. Ra1 {[%clk 0:01:37]}  h4 {[%clk 0:01:51]} 29. a5 {[%clk 0:01:31]}  Rb5 {[%clk 0:01:45]} 30. a6 {[%clk 0:01:30]}  b6 {[%clk 0:01:43]} 31. Bf6 {[%clk 0:01:15]}  Rg8 {[%clk 0:01:40]} 32. Rd2 {[%clk 0:01:03]}  Rg6 {[%clk 0:01:35]} 33. Be5 {[%clk 0:01:02]}  Nf5 {[%clk 0:01:35]} 34. Re2 {[%clk 0:00:59]}  Ne3+ {[%clk 0:01:33]} 35. Kc1 {[%clk 0:00:57]}  Kc8 {[%clk 0:01:24]} 36. Ra4 {[%clk 0:00:55]}  Re6 {[%clk 0:01:20]} 37. Ra2 {[%clk 0:00:54]}  Re8 {[%clk 0:01:08]} 38. Kd2 {[%clk 0:00:53]}  Kd7 {[%clk 0:01:06]} 39. Kc1 {[%clk 0:00:53]}  Ke6 {[%clk 0:01:01]} 40. Kd2 {[%clk 0:00:52]}  Kf5 {[%clk 0:01:01]} 41. Kc1 {[%clk 0:00:52]}  Rb3 {[%clk 0:00:52]} 42. Kd2 {[%clk 0:00:49]}  b5 {[%clk 0:00:46]} 43. Kc1 {[%clk 0:00:49]}  Rxe5 {[%clk 0:00:35]} 44. dxe5 {[%clk 0:00:48]}  Kxe5 {[%clk 0:00:36]} 45. Ra5 {[%clk 0:00:47]}  d4 {[%clk 0:00:22]} 46. cxd4+ {[%clk 0:00:46]}  Kxd4 {[%clk 0:00:23]} 47. Rd2+ {[%clk 0:00:45]}  Kc5 {[%clk 0:00:23]} 48. Ra2 {[%clk 0:00:43]}  Nd5 {[%clk 0:00:19]} 49. Re2 {[%clk 0:00:37]}  Re3 {[%clk 0:00:18]} 50. Rxe3 {[%clk 0:00:36]}  fxe3 {[%clk 0:00:19]} 51. Kd1 {[%clk 0:00:32]}  Nf4 {[%clk 0:00:18]} 52. Ra3 {[%clk 0:00:31]}  Kd4 {[%clk 0:00:17]} 53. b3 {[%clk 0:00:30]}  c3 {[%clk 0:00:15]} 54. b4 {[%clk 0:00:30]}  e2+ {[%clk 0:00:14]} 55. Ke1 {[%clk 0:00:29]}  c2 {[%clk 0:00:14]} 56. Ra1 {[%clk 0:00:28]}  Ke3 {[%clk 0:00:14]} 57. Ra3+ {[%clk 0:00:28]}  Nd3+ {[%clk 0:00:14]} 58. Rxd3+ {[%clk 0:00:26]}  Kxd3 {[%clk 0:00:15]} 0-1


[Site "https://www.chess.com"]

[Event "Titled Tuesday Blitz February 28 Late 2023"]
[White "Cueto, Jonny"]
[Black "Karamsetty, Jeevan"]
[WhiteFideId "3300145"]
[BlackFideId "2025337"]
[WhiteElo "2212"]
[BlackElo "2111"]
[Result "0-1"]
[Round "04"]
[TimeControl "180+2"]
[Date "2023.02.28"]
[WhiteClock "0:00:04"]
[BlackClock "0:00:30"]

1. d4 {[%clk 0:02:58]}  Nf6 {[%clk 0:03:00]} 2. Nf3 {[%clk 0:02:34]}  d5 {[%clk 0:02:59]} 3. g3 {[%clk 0:02:33]}  e6 {[%clk 0:02:58]} 4. Bg2 {[%clk 0:02:34]}  Be7 {[%clk 0:02:55]} 5. c4 {[%clk 0:02:34]}  dxc4 {[%clk 0:02:56]} 6. O-O {[%clk 0:02:34]}  a6 {[%clk 0:02:52]} 7. a4 {[%clk 0:02:24]}  Nc6 {[%clk 0:02:29]} 8. Na3 {[%clk 0:01:53]}  Bxa3 {[%clk 0:02:16]} 9. Rxa3 {[%clk 0:01:54]}  Rb8 {[%clk 0:02:16]} 10. b3 {[%clk 0:01:25]}  cxb3 {[%clk 0:02:06]} 11. Rxb3 {[%clk 0:01:26]}  Bd7 {[%clk 0:02:02]} 12. Ne5 {[%clk 0:01:16]}  O-O {[%clk 0:01:40]} 13. Bg5 {[%clk 0:00:51]}  Na5 {[%clk 0:01:36]} 14. Rc3 {[%clk 0:00:36]}  Be8 {[%clk 0:01:24]} 15. e4 {[%clk 0:00:34]}  h6 {[%clk 0:01:15]} 16. Bxf6 {[%clk 0:00:35]}  Qxf6 {[%clk 0:01:16]} 17. Rxc7 {[%clk 0:00:33]}  b5 {[%clk 0:01:09]} 18. Qf3 {[%clk 0:00:14]}  Qd8 {[%clk 0:01:06]} 19. Rfc1 {[%clk 0:00:11]}  Qxd4 {[%clk 0:01:03]} 20. Bh3 {[%clk 0:00:08]}  Qxe5 {[%clk 0:01:02]} 21. axb5 {[%clk 0:00:07]}  axb5 {[%clk 0:00:59]} 22. R1c5 {[%clk 0:00:06]}  Qa1+ {[%clk 0:00:53]} 23. Kg2 {[%clk 0:00:07]}  Nc4 {[%clk 0:00:48]} 24. Rh5 {[%clk 0:00:06]}  Ne5 {[%clk 0:00:35]} 25. Qf4 {[%clk 0:00:05]}  Ng6 {[%clk 0:00:35]} 26. Qg4 {[%clk 0:00:04]}  b4 {[%clk 0:00:31]} 27. Rhc5 {[%clk 0:00:03]}  b3 {[%clk 0:00:30]} 28. f4 {[%clk 0:00:03]}  b2 {[%clk 0:00:30]} 29. f5 {[%clk 0:00:03]}  b1=Q {[%clk 0:00:30]} 30. fxg6 {[%clk 0:00:04]}  Qf1# {[%clk 0:00:30]} 0-1


[Site "https://www.chess.com"]

[Event "Titled Tuesday Blitz February 28 Late 2023"]
[White "Sabar, Ethmane Daouda"]
[Black "Womacka, Mathias"]
[WhiteFideId "19600097"]
[BlackFideId "4611390"]
[WhiteElo "1950"]
[BlackElo "2377"]
[Result "0-1"]
[Round "04"]
[TimeControl "180+2"]
[Date "2023.02.28"]
[WhiteClock "0:00:05"]
[BlackClock "0:00:24"]

1. b3 {[%clk 0:03:00]}  e5 {[%clk 0:02:57]} 2. Bb2 {[%clk 0:03:01]}  Nc6 {[%clk 0:02:56]} 3. e3 {[%clk 0:02:58]}  Nf6 {[%clk 0:02:56]} 4. Nf3 {[%clk 0:02:57]}  e4 {[%clk 0:02:53]} 5. Nd4 {[%clk 0:02:54]}  Bc5 {[%clk 0:02:52]} 6. Nxc6 {[%clk 0:02:52]}  dxc6 {[%clk 0:02:51]} 7. d4 {[%clk 0:02:50]}  Bd6 {[%clk 0:02:45]} 8. c4 {[%clk 0:02:49]}  Bf5 {[%clk 0:02:43]} 9. Be2 {[%clk 0:02:35]}  Qd7 {[%clk 0:02:39]} 10. O-O {[%clk 0:02:32]}  h5 {[%clk 0:02:37]} 11. c5 {[%clk 0:02:26]}  Be7 {[%clk 0:02:35]} 12. Nc3 {[%clk 0:02:26]}  O-O-O {[%clk 0:02:32]} 13. Qc2 {[%clk 0:02:12]}  Qe6 {[%clk 0:02:21]} 14. Bc4 {[%clk 0:02:08]}  Nd5 {[%clk 0:02:20]} 15. b4 {[%clk 0:01:37]}  Qg6 {[%clk 0:02:15]} 16. Bxd5 {[%clk 0:00:57]}  cxd5 {[%clk 0:02:16]} 17. Ne2 {[%clk 0:00:42]}  h4 {[%clk 0:01:58]} 18. h3 {[%clk 0:00:38]}  Qh6 {[%clk 0:01:34]} 19. f4 {[%clk 0:00:30]}  Rhg8 {[%clk 0:01:10]} 20. b5 {[%clk 0:00:28]}  g5 {[%clk 0:01:09]} 21. b6 {[%clk 0:00:25]}  axb6 {[%clk 0:01:04]} 22. cxb6 {[%clk 0:00:25]}  Qxb6 {[%clk 0:01:04]} 23. fxg5 {[%clk 0:00:19]}  Rxg5 {[%clk 0:01:02]} 24. Nf4 {[%clk 0:00:18]}  Bd7 {[%clk 0:00:39]} 25. Rab1 {[%clk 0:00:17]}  Qa6 {[%clk 0:00:38]} 26. Rfc1 {[%clk 0:00:16]}  Bd6 {[%clk 0:00:37]} 27. Bc3 {[%clk 0:00:10]}  Rdg8 {[%clk 0:00:29]} 28. Bb4 {[%clk 0:00:08]}  Bxf4 {[%clk 0:00:28]} 29. exf4 {[%clk 0:00:06]}  Rxg2+ {[%clk 0:00:28]} 30. Qxg2 {[%clk 0:00:06]}  Rxg2+ {[%clk 0:00:27]} 31. Kxg2 {[%clk 0:00:07]}  Qe2+ {[%clk 0:00:27]} 32. Kg1 {[%clk 0:00:05]}  Bxh3 {[%clk 0:00:24]} 0-1


[Site "https://www.chess.com"]